lending/lending_fUSD_20240410
["ID","MTS","AMOUNT","RATE_DAILY","PERIOD"]
[322092506,1712759432898,-152.32197,0.00020989,2]
[322092507,1712759432907,-165.27783124,0.00020996,2]
[322092508,1712759432917,-544.75901267,0.00020996,2]
[322092509,1712759432927,-151.37927751,0.00020997,2]
[322092510,1712759432937,-548352.13157951,0.00020997,2]
[322092511,1712759432954,-921.01623142,0.00020997,2]
[322092512,1712759432966,-6894.03042941,0.00020997,2]
[322092513,1712759432978,-308.68743525,0.00020997,2]
[322092514,1712759432988,-1531.76583861,0.00020997,2]
[322092515,1712759433004,-68328.88432711,0.00020997,2]
[322092516,1712759433179,-3565.32045115,0.00020997,2]
[322092517,1712759433190,-2864.17208966,0.00020997,2]
[322092518,1712759433204,-537.58482089,0.00020997,2]
[322092519,1712759433215,-2040.41244433,0.00020997,2]
[322092520,1712759433226,-2112.94978336,0.00020997,2]
[322092521,1712759433237,-6756.98938942,0.00020997,2]
[322092528,1712759438051,-2670.18844798,0.00020791,2]
[322092529,1712759438061,-7774.06920241,0.000209,2]
[322092530,1712759438070,-272.33475635,0.00020987,2]
[322092531,1712759438079,-272.33475635,0.00020987,2]
[322092532,1712759438089,-272.33475635,0.0002099,2]
[322092533,1712759438098,-2211.74518504,0.0002099,2]
[322092534,1712759438108,-89425.6105884,0.00020997,2]
[322092535,1712759438321,-685.2,0.00020997,2]
[322092536,1712759438333,-1465.62805132,0.00020997,2]
[322092537,1712759438348,-899545.59563964,0.00020997,2]
[322092538,1712759438360,-264.39283339,0.00020997,2]
[322092539,1712759438371,-691.29477667,0.00020997,2]
[322092540,1712759438382,-364.93972209,0.00020997,2]
[322092634,1712759440012,-2410.06367051,0.00020881,2]
[322092637,1712759440025,-260.12477747,0.00020881,2]
[322092639,1712759440034,-9049.74725893,0.00020997,2]
[322092641,1712759440045,-1561.53121437,0.00020997,2]
[322092643,1712759440056,-842.67702403,0.00020997,2]
[322092652,1712759440128,-20387.49874412,0.00020997,2]
[322092654,1712759440140,-6178.75012889,0.00020997,2]
[322092656,1712759440150,-155.0,0.00020998,2]
[322092658,1712759440159,-198.04823393,0.00020998,2]
[322092660,1712759440168,-357.05183718,0.00020998,2]
[322092663,1712759440188,-1218.65397072,0.00020998,2]
[322092665,1712759440200,-788.84943409,0.00020998,2]
[322092667,1712759440211,-389.66291971,0.00020999,2]
[322092669,1712759440220,-233.79775183,0.00020999,2]
[322092671,1712759440229,-155.86516788,0.00020999,2]
[322092673,1712759440239,-301.37161956,0.00020999,2]
[322092675,1712759440249,-267.84776266,0.00020999,2]
[322092677,1712759440259,-161.1031879,0.00020999,2]
[322092679,1712759440268,-1268.44514472,0.00020999,2]
[322092681,1712759440278,-51170.33409196,0.00020999,2]
[322092684,1712759440290,-400.06214943,0.00020999,2]
[322092693,1712759440373,-118518.08282308,0.00020999,2]
[322092695,1712759440383,-4298.15843189,0.00021,2]
[322092717,1712759440669,-158.09155987,0.00020996,2]
[322092719,1712759440679,-5060.06983882,0.00021,2]
[322092828,1712759443012,-12770.99500581,0.00021,2]
[322092829,1712759443435,-796.30001,0.00021,2]
[322092830,1712759443446,-505.9999999,0.00021,2]
[322092831,1712759443459,-6929.69621336,0.00021,2]
[322092832,1712759443586,-5967.48980201,0.00021,2]
[322092833,1712759443628,-6068.35320014,0.00021,2]
[322092834,1712759443664,-1199.9734224,0.00021,2]
[322092835,1712759443676,-178157.2743395,0.00021,2]
[322092836,1712759443689,-8868.17714718,0.00021,2]
[322092837,1712759443702,-480.20349045,0.00021,2]
[322092838,1712759443713,-776.01964028,0.00021,2]
[322092839,1712759443724,-396.328,0.00021,2]
[322092840,1712759443736,-1482.10899994,0.00021,2]
[322092841,1712759443747,-412.1753019,0.00021,2]
[322092842,1712759443758,-296.13443335,0.00021,2]
[322092843,1712759443769,-3414.20568065,0.00021,2]
[322092918,1712759446103,-1674.39821588,0.00020972,2]
[322092919,1712759446116,-995.7902321,0.00020972,2]
[322092920,1712759446126,-640.46092048,0.00020999,2]
[322092921,1712759446135,-47600.99683457,0.00021,2]
[322092925,1712759446164,-155.0,0.00020999,2]
[322092927,1712759446173,-3888.81351132,0.00021,2]
[322092929,1712759446184,-719.36815879,0.00021,2]
[322092941,1712759446444,-1650.65151282,0.00021,2]
[322092942,1712759446462,-4772.8746025,0.00021,2]
[322092943,1712759446473,-5239.05401154,0.00021,2]
[322092944,1712759823385,150.5,0.0002099,15]
[322092945,1712759823478,244.0,0.0002099,15]
[322092946,1712759823961,244.0,0.0002098,15]
[322092947,1712759823994,150.5,0.0002098,15]
[322092948,1712759824510,230.0,0.0002097,15]
[322092949,1712759824624,244.0,0.0002097,15]
[322092950,1712759825722,150.5,0.0002099,15]
[322092951,1712759826467,150.5,0.0002098,15]
[322092952,1712759826941,150.5,0.0002097,15]
[322092953,1712759833684,-162.22817461,0.00019187,2]
[322092954,1712759833703,-337.77182539,0.00019285,2]
[322092955,1712759846509,164.50036262,0.00017613,2]
[322092956,1712759846530,4.76963738,0.00017613,2]
[322092957,1712759857794,-200.0,0.00019285,2]
[322092967,1712760439370,160.8,0.00017179,2]
[322093205,1712760545050,171.0,0.00020811,15]
[322093206,1712760545426,150.5,0.00020811,15]
[322093207,1712760545546,171.0,0.00020801,15]
[322093208,1712760545907,150.5,0.00020801,15]
[322093209,1712760546111,171.0,0.00020791,15]
[322093210,1712760546385,228.5,0.00020791,15]
[322093211,1712760546581,171.0,0.00020868,15]
[322093212,1712760547070,171.0,0.00020858,15]
[322093213,1712760547692,171.0,0.00020848,15]
[322093214,1712760548592,171.0,0.00020868,15]
[322093215,1712760549089,171.0,0.00020858,15]
[322093216,1712760549556,171.0,0.00020989,15]
[322093217,1712760550169,171.0,0.00020979,15]
[322093247,1712760632199,-188.0947876,0.00019011,2]
[322093249,1712760632209,-250.0,0.00019097,2]
[322093251,1712760632219,-2210.85563473,0.0001911,2]
[322093253,1712760632229,-938.30697889,0.00019111,2]
[322093262,1712760632336,-359.0930928,0.00019111,2]
[322093266,1712760632404,-315.59992831,0.00019111,2]
[322093268,1712760632415,-47.23436169,0.00019113,2]
[322093269,1712760632427,-744.35563831,0.00019113,2]
[322093270,1712760632436,-85.17886265,0.00019165,2]
[322093271,1712760632493,-282.50113735,0.00019165,2]
[322093272,1712760632503,-150.0,0.00019169,2]
[322093273,1712760632512,-1758.12186265,0.0001917,2]
[322093274,1712760632559,-114.70813735,0.0001917,2]
[322093275,1712760632568,-4303.34360894,0.0001917,2]
[322093455,1712760638344,-11432.2072065,0.0001917,2]
[322093456,1712760638357,-593.31772905,0.0001917,2]
[322093458,1712760638369,-3412.92618135,0.0001917,2]
[322093463,1712760638381,-4158.20527416,0.0001917,2]
[322093466,1712760638391,-398.75526945,0.00019178,2]
[322093467,1712760638400,-355.17528801,0.00019187,2]
[322093468,1712760638410,-1000.0,0.00019187,2]
[322093469,1712760638420,-56.31293426,0.00019206,2]
[322093470,1712760638432,-2453.95706574,0.00019206,2]
[322093471,1712760638442,-740.38,0.00019217,2]
[322093472,1712760638451,-2000.0,0.00019226,2]
[322093473,1712760638461,-1000.0,0.0001932,2]
[322093474,1712760638470,-1500.0,0.00019324,2]
[322093475,1712760638480,-200.0,0.00019324,2]
[322093476,1712760638489,-1000.0,0.00019342,2]
[322093477,1712760638501,-1852.42,0.00019376,2]
[322093478,1712760638510,-209.37637678,0.00019388,2]
[322093479,1712760638520,-1019.58204492,0.00019388,2]
[322093480,1712760638529,-160.8,0.00019443,2]
[322093481,1712760638538,-294.76,0.0001946,2]
[322093482,1712760638548,-499.99,0.00019487,2]
[322093483,1712760638557,-156.0,0.00019491,2]
[322093484,1712760638566,-155.25,0.00019643,2]
[322093485,1712760638576,-156.0,0.00019695,2]
[322093486,1712760638585,-1000.0,0.00019861,2]
[322093487,1712760638597,-156.0,0.00019898,2]
[322093488,1712760638607,-1271.65570072,0.00020005,2]
[322093489,1712760638615,-156.0,0.00020101,2]
[322093490,1712760638625,-156.0,0.00020304,2]
[322093491,1712760638634,-231.34,0.00020482,2]
[322093492,1712760638643,-167.1,0.00020485,2]
[322093493,1712760638653,-156.0,0.00020507,2]
[322093494,1712760638662,-550.0,0.0002052,2]
[322093495,1712760638671,-502.0,0.00020547,2]
[322093496,1712760638681,-308.68893934,0.00020646,2]
[322093498,1712760638690,-2431.53733856,0.00020648,2]
[322093500,1712760638699,-2431.53733854,0.00020676,2]
[322093502,1712760638709,-7500.0,0.00020687,2]
[322093504,1712760638717,-2006.04114469,0.00020687,2]
[322093506,1712760638727,-225.22917595,0.00020692,2]
[322093508,1712760638736,-308.68893934,0.00020697,2]
[322093510,1712760638745,-11405.56600772,0.00020704,2]
[322093512,1712760638754,-2431.53733854,0.00020704,2]
[322093514,1712760638764,-225.22917593,0.00020708,2]
[322093516,1712760638772,-1000.0,0.00020708,2]
[322093518,1712760638782,-2006.04114469,0.00020717,2]
[322093520,1712760638791,-313.2665144,0.00020721,2]
[322093522,1712760638800,-313.2665144,0.00020721,2]
[322093524,1712760638809,-313.2665144,0.00020722,2]
[322093526,1712760638818,-187.94910268,0.00020723,2]
[322093528,1712760638830,-151.78854717,0.00020723,2]
[322093530,1712760638843,-225.22917593,0.00020723,2]
[322093531,1712760638852,-293.01445835,0.00020723,2]
[322093533,1712760638862,-11405.56600772,0.00020726,2]
[322093535,1712760638871,-313.2665144,0.00020727,2]
[322093537,1712760638880,-5430.49209489,0.00020731,2]
[322093539,1712760638894,-2032.0801,0.00020731,2]
[322093541,1712760638905,-1049.57168087,0.00020731,2]
[322093543,1712760638914,-1978.20615339,0.00020732,2]
[322093546,1712760638927,-453.33118515,0.00020732,2]
[322093548,1712760638937,-313.2665144,0.00020735,2]
[322093550,1712760638946,-313.2665144,0.00020735,2]
[322093552,1712760638955,-313.2665144,0.00020735,2]
[322093554,1712760638965,-313.2665144,0.00020735,2]
[322093556,1712760638974,-313.2665144,0.00020735,2]
[322093558,1712760638983,-39.72624285,0.00020735,2]
[322093560,1712760638994,-273.54027155,0.00020735,2]
[322093562,1712760639003,-126.45972845,0.00020735,2]
[322093564,1712760639016,-42.97673794,0.00020735,2]
[322093566,1712760639025,-228.66326206,0.00020735,2]
[322093572,1712760639060,-84.60325234,0.00020735,2]
[322093574,1712760639069,-313.2665144,0.00020735,2]
[322093577,1712760639079,-313.2665144,0.00020735,2]
[322093579,1712760639088,-294.80740582,0.00020735,2]
[322093581,1712760639101,-18.45910858,0.00020735,2]
[322093583,1712760639110,-313.2665144,0.00020735,2]
[322093585,1712760639119,-313.2665144,0.00020735,2]
[322093586,1712760639129,-44.36515435,0.00020735,2]
[322093588,1712760639140,-268.90136005,0.00020735,2]
[322093589,1712760639150,-313.2665144,0.00020735,2]
[322093590,1712760639159,-213.10033105,0.00020735,2]
[322093591,1712760639171,-100.16618335,0.00020735,2]
[322093592,1712760639180,-313.2665144,0.00020735,2]
[322093593,1712760639189,-313.2665144,0.00020735,2]
[322093594,1712760639199,-280.68376223,0.00020735,2]
[322093595,1712760639210,-32.58275217,0.00020735,2]
[322093596,1712760639219,-313.2665144,0.00020735,2]
[322093597,1712760639229,-302.67366573,0.00020735,2]
[322093598,1712760639241,-10.59284867,0.00020735,2]
[322093599,1712760639250,-313.2665144,0.00020735,2]
[322093600,1712760639261,-313.2665144,0.00020735,2]
[322093601,1712760639271,-313.2665144,0.00020735,2]
[322093602,1712760639281,-313.2665144,0.00020735,2]
[322093603,1712760639293,-313.2665144,0.00020735,2]
[322093604,1712760639303,-313.2665144,0.00020735,2]
[322093605,1712760639313,-313.2665144,0.00020735,2]
[322093606,1712760639322,-313.2665144,0.00020735,2]
[322093607,1712760639332,-313.2665144,0.00020735,2]
[322093608,1712760639345,-313.2665144,0.00020735,2]
[322093609,1712760639355,-313.2665144,0.00020735,2]
[322093610,1712760639365,-313.2665144,0.00020735,2]
[322093611,1712760639374,-313.2665144,0.00020735,2]
[322093612,1712760639383,-313.2665144,0.00020735,2]
[322093613,1712760639394,-313.2665144,0.00020735,2]
[322093614,1712760639403,-313.2665144,0.00020735,2]
[322093615,1712760639413,-313.2665144,0.00020735,2]
[322093616,1712760639423,-313.2665144,0.00020735,2]
[322093617,1712760639434,-313.2665144,0.00020735,2]
[322093618,1712760639443,-313.2665144,0.00020735,2]
[322093619,1712760639452,-313.2665144,0.00020735,2]
[322093620,1712760639461,-313.2665144,0.00020735,2]
[322093621,1712760639470,-313.2665144,0.00020735,2]
[322093622,1712760639480,-171.04,0.00020735,2]
[322093623,1712760639490,-313.2665144,0.00020735,2]
[322093624,1712760639500,-171.04,0.00020735,2]
[322093625,1712760639509,-313.2665144,0.00020735,2]
[322093626,1712760639519,-313.2665144,0.00020735,2]
[322093627,1712760639529,-293.01445834,0.00020739,2]
[322093628,1712760639539,-220184.83521192,0.00020745,2]
[322093629,1712760639555,-324944.94591101,0.00020745,2]
[322093630,1712760639564,-8512.14387574,0.00020746,2]
[322093631,1712760639573,-11405.56600772,0.00020748,2]
[322093632,1712760639582,-308.68893934,0.00020748,2]
[322093633,1712760639593,-2006.04114469,0.00020748,2]
[322093634,1712760639602,-293.01445834,0.00020754,2]
[322093635,1712760639611,-2431.53733854,0.0002076,2]
[322093636,1712760639620,-8512.14387574,0.00020762,2]
[322093637,1712760639630,-11405.56600772,0.00020769,2]
[322093638,1712760639639,-293.01445834,0.0002077,2]
[322093639,1712760639648,-8512.14387574,0.00020777,2]
[322093640,1712760639657,-2006.04114469,0.00020778,2]
[322093641,1712760639666,-1199.45124852,0.00020785,2]
[322093642,1712760639676,-183.4276919,0.00020785,2]
[322093643,1712760639685,-293.01445834,0.00020785,2]
[322093644,1712760639695,-2431.53733854,0.00020788,2]
[322093645,1712760639704,-2173.9666,0.0002079,2]
[322093646,1712760639714,-11405.56600772,0.00020791,2]
[322093647,1712760639723,-8512.14387574,0.00020792,2]
[322093648,1712760639733,-842.0277,0.00020794,2]
[322093649,1712760639742,-263.23157217,0.00020794,2]
[322093650,1712760639752,-207.28883958,0.00020795,2]
[322093651,1712760639761,-299.33879216,0.00020795,2]
[322093652,1712760639771,-2651.6253,0.00020798,2]
[322093653,1712760639780,-308.68893934,0.00020798,2]
[322093654,1712760639790,-162.22817461,0.00020799,2]
[322093655,1712760639800,-189.80244038,0.00020799,2]
[322093656,1712760639809,-618.05751897,0.00020804,2]
[322093657,1712760639819,-221.27014755,0.00020805,2]
[322093658,1712760639829,-8512.14387574,0.00020808,2]
[322093659,1712760639845,-2006.04114469,0.00020809,2]
[322093660,1712760639856,-169.43646639,0.00020811,2]
[322093661,1712760639865,-171.04,0.00020811,2]
[322093662,1712760639875,-171.04,0.00020811,2]
[322093663,1712760639885,-171.04,0.00020811,2]
[322093664,1712760639895,-171.04,0.00020811,2]
[322093665,1712760639904,-171.04,0.00020811,2]
[322093666,1712760639915,-464.78220638,0.00020812,3]
[322093667,1712760639925,-11405.56600772,0.00020813,2]
[322093668,1712760639934,-18753.96,0.00020815,2]
[322093669,1712760639944,-2431.53733854,0.00020816,2]
[322093670,1712760639953,-233.46814828,0.0002082,2]
[322093671,1712760639962,-196.573296,0.00020821,2]
[322093672,1712760639971,-1504726.61512057,0.00020821,2]
[322093673,1712760639981,-8512.14387574,0.00020823,2]
[322093674,1712760639990,-11405.56600772,0.00020835,2]
[322093675,1712760639999,-8512.14387574,0.00020839,2]
[322093676,1712760640008,-2006.04114469,0.00020839,2]
[322093677,1712760640017,-464.78220638,0.00020842,3]
[322093678,1712760640026,-1199.45124851,0.00020843,2]
[322093679,1712760640035,-183.42769189,0.00020843,2]
[322093680,1712760640045,-2431.53733854,0.00020844,2]
[322093681,1712760640054,-308.68893934,0.00020849,2]
[322093682,1712760640063,-8512.14387574,0.00020854,2]
[322093683,1712760640073,-11405.56600772,0.00020856,2]
[322093685,1712760640082,-8512.14387574,0.00020869,2]
[322093686,1712760640093,-2006.04114469,0.0002087,2]
[322093687,1712760640102,-2436.37,0.0002087,4]
[322093688,1712760640112,-169.43646639,0.0002087,2]
[322093689,1712760640122,-464.78220638,0.00020871,3]
[322093690,1712760640132,-2431.53733854,0.00020872,2]
[322093691,1712760640141,-11405.56600772,0.00020878,2]
[322093692,1712760640150,-7083516.51576864,0.0002088,2]
[322093693,1712760640159,-8512.14387574,0.00020885,2]
[322093695,1712760640169,-9718.3528,0.00020899,2]
[322093697,1712760640177,-258.3257,0.00020899,2]
[322093698,1712760640187,-100000.0,0.00020899,2]
[322093700,1712760640196,-177.99290905,0.000209,2]
[322093702,1712760640205,-180.28720509,0.000209,2]
[322093703,1712760640214,-11405.56600772,0.000209,2]
[322093704,1712760640224,-8512.14387574,0.000209,2]
[322093705,1712760640234,-335.1385524,0.000209,2]
[322093706,1712760640243,-464.78220638,0.000209,3]
[322093707,1712760640253,-335.13855223,0.000209,2]
[322093708,1712760640262,-335.13855223,0.000209,2]
[322093709,1712760640271,-335.13855223,0.000209,2]
[322093710,1712760640281,-335.13855223,0.000209,2]
[322093711,1712760640290,-335.13855223,0.000209,2]
[322093712,1712760640300,-2006.04114469,0.000209,2]
[322093713,1712760640310,-335.13855223,0.000209,2]
[322093714,1712760640319,-335.13855223,0.000209,2]
[322093715,1712760640328,-335.13855223,0.000209,2]
[322093716,1712760640339,-1199.45124851,0.000209,2]
[322093717,1712760640348,-335.13855223,0.000209,2]
[322093718,1712760640357,-335.13855223,0.000209,2]
[322093719,1712760640366,-335.13855223,0.000209,2]
[322093720,1712760640376,-335.13855223,0.000209,2]
[322093721,1712760640385,-335.13855223,0.000209,2]
[322093722,1712760640394,-335.13855223,0.000209,2]
[322093723,1712760640403,-335.13855223,0.000209,2]
[322093724,1712760640412,-335.13855223,0.000209,2]
[322093725,1712760640422,-2431.53733854,0.000209,2]
[322093726,1712760640431,-335.13855223,0.000209,2]
[322093727,1712760640441,-183.42769189,0.000209,2]
[322093728,1712760640449,-335.13855223,0.000209,2]
[322093729,1712760640459,-641.47152024,0.000209,2]
[322093730,1712760640468,-189.62,0.00020951,2]
[322093731,1712760640478,-19999.99,0.00020951,2]
[322093732,1712760640487,-8000.0,0.00020951,2]
[322093733,1712760640496,-23043.38,0.00020951,2]
[322093734,1712760640506,-3703.246078,0.00020996,2]
[322093735,1712760640515,-10048.656208,0.00020996,3]
[322093736,1712760640524,-4274.48788591,0.00020997,3]
[322093737,1712760640533,-639.17043074,0.00020998,2]
[322093738,1712760640542,-270.30286442,0.00020998,2]
[322093739,1712760640552,-6280.41013,0.00020998,3]
[322093740,1712760640562,-12559.77778507,0.00020998,2]
[322093741,1712760640571,-12560.82026,0.00020998,2]
[322093742,1712760640580,-239.93898839,0.00020999,2]
[322093743,1712760640591,-7648.47021945,0.00020999,2]
[322093744,1712760640600,-1962695.78728564,0.00021,2]
[322093745,1712760640613,-10400609.10747979,0.00021,2]
[322093746,1712760640623,-714.96210186,0.00021,2]
[322093747,1712760640633,-155.0,0.00021,2]
[322093748,1712760640642,-250.0,0.00021,3]
[322093749,1712760640651,-605.57,0.00021,2]
[322093750,1712760640660,-412.0,0.00021,2]
[322093751,1712760640669,-2000.0,0.00021,2]
[322093752,1712760640678,-200.0,0.00021,2]
[322093764,1712760640827,-210.0,0.00021086,2]
[322093766,1712760640840,-2000.0,0.0002121,2]
[322093768,1712760640853,-200.0,0.0002121,2]
[322093770,1712760640862,-416.1,0.00021234,2]
[322093772,1712760640872,-4005.0,0.00021267,2]
[322093774,1712760640882,-162.88,0.00021337,2]
[322093777,1712760640892,-1951.3,0.0002137,2]
[322093779,1712760640901,-20000.0,0.00021463,3]
[322093781,1712760640911,-2147.0,0.00021464,3]
[322093783,1712760640922,-500.72724174,0.00021699,2]
[322093785,1712760640932,-160.8,0.00021707,2]
[322093787,1712760640941,-550.0,0.00021753,2]
[322093789,1712760640950,-1000.0,0.00021759,2]
[322093791,1712760640961,-502.0,0.0002178,2]
[322093793,1712760640970,-1250.0,0.000219,2]
[322093794,1712760640980,-790.9808523,0.000219,2]
[322093796,1712760640989,-1872.83,0.0002191,2]
[322093798,1712760640999,-250.0,0.00021918,2]
[322093800,1712760641008,-8306.57,0.00021918,2]
[322093802,1712760641017,-250.0,0.00021918,2]
[322093804,1712760641027,-150.0,0.00021918,2]
[322093807,1712760641036,-952.17194491,0.00022,2]
[322093809,1712760641046,-783.68958544,0.00022,2]
[322093811,1712760641055,-562.65039884,0.00022,2]
[322093813,1712760641064,-282.16237035,0.00022,2]
[322093815,1712760641073,-1801.48280567,0.00022,2]
[322093817,1712760641082,-180.0,0.00022301,2]
[322093819,1712760641094,-189.122,0.00022431,2]
[322093821,1712760641103,-1000.0,0.000225,2]
[322093822,1712760641113,-62089.45757243,0.00022738,2]
[322093825,1712760641122,-162.88,0.00022846,2]
[322093827,1712760641132,-550.0,0.00022986,2]
[322093828,1712760641141,-155.97526314,0.00023,2]
[322093831,1712760641150,-307.07035254,0.00023,2]
[322093832,1712760641159,-155.0,0.00023,2]
[322093834,1712760641168,-300.0,0.00023,3]
[322093836,1712760641177,-502.0,0.00023013,2]
[322093838,1712760641187,-240.0,0.00023195,2]
[322093840,1712760641196,-995.0,0.00023288,2]
[322093842,1712760641205,-1000.0,0.00023288,2]
[322093845,1712760641214,-1000.0,0.00023288,2]
[322093846,1712760641223,-1000.0,0.00023288,2]
[322093848,1712760641232,-197.0,0.00023288,2]
[322093850,1712760641241,-1000.0,0.00023288,2]
[322093852,1712760641253,-1000.0,0.00023288,2]
[322093854,1712760641263,-1000.0,0.00023288,2]
[322093856,1712760641272,-1000.0,0.00023288,2]
[322093858,1712760641281,-1000.0,0.00023288,2]
[322093860,1712760641291,-1000.0,0.00023288,2]
[322093862,1712760641301,-1000.0,0.00023288,2]
[322093864,1712760641311,-1000.0,0.00023288,2]
[322093866,1712760641320,-1000.0,0.00023288,2]
[322093868,1712760641329,-1000.0,0.00023288,2]
[322093870,1712760641339,-1056.0,0.00023288,2]
[322093872,1712760641348,-2173.9666,0.0002329,2]
[322093874,1712760641358,-450.68550755,0.00023417,2]
[322093876,1712760641370,-450.68550755,0.00023417,2]
[322093879,1712760641380,-450.68550755,0.00023417,2]
[322093881,1712760641389,-450.68550755,0.00023417,2]
[322093883,1712760641400,-450.68550755,0.00023417,2]
[322093885,1712760641409,-450.68550755,0.00023417,2]
[322093887,1712760641418,-450.68550755,0.00023417,2]
[322093889,1712760641428,-450.68550755,0.00023417,2]
[322093891,1712760641437,-450.68550755,0.00023417,2]
[322093893,1712760641447,-450.68550755,0.00023417,2]
[322093895,1712760641457,-450.68550755,0.00023417,2]
[322093897,1712760641466,-450.68550755,0.00023417,2]
[322093899,1712760641476,-450.68550755,0.00023417,2]
[322093900,1712760641485,-450.68550755,0.00023417,2]
[322093901,1712760641495,-6284.69721504,0.000235,2]
[322093902,1712760641504,-5000.0,0.000235,2]
[322093903,1712760641513,-1023.0,0.000235,2]
[322093904,1712760641522,-605.57,0.000235,2]
[322093905,1712760641531,-412.0,0.000235,2]
[322093906,1712760641541,-19460.06407151,0.000237,2]
[322093907,1712760641550,-454.0,0.000237,2]
[322093908,1712760641560,-160.8,0.00023971,2]
[322093909,1712760641569,-224.62727988,0.00024,2]
[322093910,1712760641578,-454.58628101,0.00024,2]
[322093911,1712760641590,-1000.0,0.00024177,2]
[322093912,1712760641599,-550.0,0.00024219,2]
[322093913,1712760641607,-502.0,0.00024246,2]
[322093914,1712760641617,-162.88,0.00024355,2]
[322093915,1712760641626,-151.78854707,0.00024375,2]
[322093916,1712760641635,-1000.0,0.000245,2]
[322093917,1712760641644,-1872.83,0.0002465,2]
[322093919,1712760641654,-149089.15696195,0.0002469,5]
[322093921,1712760641663,-2223.73711434,0.000248,2]
[322093923,1712760641672,-2603.52703539,0.00025,2]
[322093925,1712760641681,-155.0,0.00025,2]
[322093926,1712760641690,-155.0,0.00025,2]
[322093927,1712760641700,-2410.18918178,0.00025,2]
[322093928,1712760641709,-350.0,0.00025,3]
[322093929,1712760641718,-500.0,0.00025,2]
[322093930,1712760641728,-553.0,0.00025452,2]
[322093931,1712760641737,-502.0,0.00025479,2]
[322093932,1712760641746,-323.59,0.00025534,2]
[322093933,1712760641756,-417.92,0.00025534,2]
[322093934,1712760641765,-417.92,0.00025534,2]
[322093935,1712760641774,-2173.9666,0.0002579,2]
[322093936,1712760641783,-162.88,0.00025865,2]
[322093937,1712760641793,-450.68550755,0.00025999,2]
[322093938,1712760641802,-500000.0,0.00026,2]
[322093939,1712760641811,-417.92,0.00026034,2]
[322093940,1712760641820,-329.88,0.00026034,2]
[322093941,1712760641830,-150.0,0.00026034,2]
[322093942,1712760641845,-219.11,0.00026034,2]
[322093943,1712760641855,-417.92,0.00026034,2]
[322093944,1712760641864,-160.8,0.00026234,2]
[322093945,1712760641874,-10760.043607,0.000263,2]
[322093946,1712760641884,-1000.0,0.00026595,2]
[322093947,1712760641893,-502.0,0.00026712,2]
[322093948,1712760641902,-740.38,0.00026903,2]
[322093949,1712760641911,-1000.0,0.00027,2]
[322093950,1712760641921,-400.0,0.00027,3]
[322093951,1712760641930,-605.57,0.00027,2]
[322093952,1712760641939,-412.0,0.00027,2]
[322093953,1712760641949,-155.05767173,0.00027,2]
[322093954,1712760641958,-1471.26976529,0.00027074,2]
[322093955,1712760641967,-1108.11623479,0.00027397,2]
[322093956,1712760641977,-314.9,0.00027397,2]
[322093957,1712760641985,-169.89,0.00027397,2]
[322093958,1712760641995,-216.04,0.00027397,2]
[322093959,1712760642004,-151.55,0.00027397,2]
[322093960,1712760642013,-5300.14755709,0.000274,2]
[322093961,1712760642023,-1000.0,0.000275,2]
[322093962,1712760642032,-378.826704,0.000278,2]
[322093963,1712760642041,-502.0,0.00027945,2]
[322093964,1712760642051,-23535.94437515,0.00028,2]
[322093965,1712760642060,-470.7188875,0.00028,2]
[322093966,1712760642069,-151.78854707,0.00028028,2]
[322093967,1712760642078,-2173.9666,0.0002829,2]
[322093968,1712760642090,-160.8,0.00028498,2]
[322093969,1712760642099,-2208.84501361,0.00028499,2]
[322093970,1712760642109,-155.0,0.00028499,2]
[322093971,1712760642118,-333.90718268,0.00028499,7]
[322093972,1712760642127,-155.0,0.00028499,2]
[322093973,1712760642136,-1033.52071841,0.00028499,2]
[322093974,1712760642146,-255.57050584,0.00028499,2]
[322093975,1712760642155,-344.71385659,0.00028499,2]